[Event "Titled Tuesday Blitz October 31 Late 2023"]
[White "Makaraci, Tunahan"]
[Black "Chan, Luis"]
[WhiteFideId "6356559"]
[BlackFideId "3216357"]
[WhiteElo "2458"]
[BlackElo "2578"]
[Result "0-1"]
[Round "9"]
[TimeControl "180+1"]
[Date "2023.10.31"]
[WhiteClock "0:01:04"]
[BlackClock "0:00:12"]
[Board "51"]

1. e4 {[%clk 0:03:00]}  c5 {[%clk 0:02:59]} 2. c3 {[%clk 0:03:00]}  g6 {[%clk 0:02:59]} 3. d4 {[%clk 0:03:00]}  cxd4 {[%clk 0:02:53]} 4. cxd4 {[%clk 0:03:01]}  Bg7 {[%clk 0:02:54]} 5. Nc3 {[%clk 0:03:00]}  d5 {[%clk 0:02:18]} 6. exd5 {[%clk 0:02:51]}  Nf6 {[%clk 0:02:18]} 7. Nf3 {[%clk 0:02:45]}  O-O {[%clk 0:02:16]} 8. h3 {[%clk 0:02:42]}  Nxd5 {[%clk 0:02:16]} 9. Bc4 {[%clk 0:02:42]}  Nxc3 {[%clk 0:02:06]} 10. bxc3 {[%clk 0:02:43]}  Qc7 {[%clk 0:02:07]} 11. Qe2 {[%clk 0:02:43]}  b5 {[%clk 0:02:05]} 12. Bd5 {[%clk 0:02:40]}  Qxc3+ {[%clk 0:02:04]} 13. Qd2 {[%clk 0:02:35]}  Qxa1 {[%clk 0:02:01]} 14. Bxa8 {[%clk 0:02:33]}  Be6 {[%clk 0:01:54]} 15. O-O {[%clk 0:02:27]}  Qxa2 {[%clk 0:01:43]} 16. Qf4 {[%clk 0:02:24]}  b4 {[%clk 0:01:22]} 17. Be3 {[%clk 0:02:18]}  b3 {[%clk 0:01:19]} 18. d5 {[%clk 0:02:18]}  Bf5 {[%clk 0:01:14]} 19. Nd4 {[%clk 0:02:12]}  Bd3 {[%clk 0:00:42]} 20. d6 {[%clk 0:01:34]}  exd6 {[%clk 0:00:35]} 21. Re1 {[%clk 0:01:34]}  b2 {[%clk 0:00:34]} 22. Qxd6 {[%clk 0:01:31]}  b1=Q {[%clk 0:00:33]} 23. Rxb1 {[%clk 0:01:31]}  Qxb1+ {[%clk 0:00:34]} 24. Kh2 {[%clk 0:01:32]}  a5 {[%clk 0:00:30]} 25. Bd5 {[%clk 0:01:28]}  Qb2 {[%clk 0:00:26]} 26. Nf3 {[%clk 0:01:25]}  Be2 {[%clk 0:00:20]} 27. Bc5 {[%clk 0:01:24]}  Bxf3 {[%clk 0:00:20]} 28. Bxf7+ {[%clk 0:01:10]}  Rxf7 {[%clk 0:00:13]} 29. Qd8+ {[%clk 0:01:08]}  Bf8 {[%clk 0:00:13]} 30. gxf3 {[%clk 0:01:04]}  Qe5+ {[%clk 0:00:12]} 0-1


[Site "https://www.chess.com"]

[Event "Titled Tuesday Blitz October 31 Late 2023"]
[White "UK_23"]
[Black "Ordekalog"]
[WhiteElo "2401"]
[BlackElo "2571"]
[Result "0-1"]
[Round "9"]
[TimeControl "180+1"]
[Date "2023.10.31"]
[WhiteClock "0:00:00"]
[BlackClock "0:00:23"]
[Board "52"]

1. e4 {[%clk 0:03:00]}  c5 {[%clk 0:02:58]} 2. Nf3 {[%clk 0:03:01]}  e6 {[%clk 0:02:57]} 3. g3 {[%clk 0:03:01]}  Nc6 {[%clk 0:02:57]} 4. Bg2 {[%clk 0:03:01]}  Nf6 {[%clk 0:02:55]} 5. Qe2 {[%clk 0:03:01]}  d6 {[%clk 0:02:54]} 6. O-O {[%clk 0:03:01]}  Be7 {[%clk 0:02:54]} 7. Rd1 {[%clk 0:03:00]}  O-O {[%clk 0:02:54]} 8. d4 {[%clk 0:03:00]}  cxd4 {[%clk 0:02:54]} 9. Nxd4 {[%clk 0:03:01]}  Nxd4 {[%clk 0:02:54]} 10. Rxd4 {[%clk 0:03:02]}  Qb6 {[%clk 0:02:52]} 11. Rd1 {[%clk 0:03:00]}  Bd7 {[%clk 0:02:51]} 12. c4 {[%clk 0:03:00]}  Rac8 {[%clk 0:02:50]} 13. Nc3 {[%clk 0:02:59]}  a6 {[%clk 0:02:48]} 14. b3 {[%clk 0:02:56]}  Rfd8 {[%clk 0:02:43]} 15. Bb2 {[%clk 0:02:53]}  Bc6 {[%clk 0:02:39]} 16. Rac1 {[%clk 0:02:53]}  Qa7 {[%clk 0:02:37]} 17. h3 {[%clk 0:02:37]}  h6 {[%clk 0:02:36]} 18. Kh2 {[%clk 0:02:37]}  b5 {[%clk 0:02:36]} 19. f4 {[%clk 0:02:16]}  bxc4 {[%clk 0:02:34]} 20. bxc4 {[%clk 0:02:10]}  Qb7 {[%clk 0:02:32]} 21. Ba3 {[%clk 0:02:07]}  Bf8 {[%clk 0:02:21]} 22. Rb1 {[%clk 0:01:59]}  Qc7 {[%clk 0:02:20]} 23. Rb3 {[%clk 0:01:28]}  Ba8 {[%clk 0:02:18]} 24. c5 {[%clk 0:01:20]}  dxc5 {[%clk 0:02:14]} 25. Rxd8 {[%clk 0:01:20]}  Rxd8 {[%clk 0:02:09]} 26. Qc4 {[%clk 0:01:21]}  Bb7 {[%clk 0:01:49]} 27. Rb2 {[%clk 0:00:42]}  Rd4 {[%clk 0:01:46]} 28. Qe2 {[%clk 0:00:38]}  Nd7 {[%clk 0:01:22]} 29. Rd2 {[%clk 0:00:26]}  Qa5 {[%clk 0:01:12]} 30. Bb2 {[%clk 0:00:20]}  Qb4 {[%clk 0:01:05]} 31. h4 {[%clk 0:00:18]}  a5 {[%clk 0:00:59]} 32. h5 {[%clk 0:00:17]}  Ba6 {[%clk 0:00:57]} 33. Qf2 {[%clk 0:00:17]}  a4 {[%clk 0:00:52]} 34. a3 {[%clk 0:00:16]}  Qb3 {[%clk 0:00:48]} 35. g4 {[%clk 0:00:16]}  Bd6 {[%clk 0:00:41]} 36. Kg3 {[%clk 0:00:16]}  Bc7 {[%clk 0:00:28]} 37. Kh4 {[%clk 0:00:11]}  Bd8+ {[%clk 0:00:25]} 38. Kh3 {[%clk 0:00:10]}  e5 {[%clk 0:00:24]} 39. f5 {[%clk 0:00:09]}  Bg5 {[%clk 0:00:23]} 40. Rxd4 {[%clk 0:00:00]}  cxd4 {[%clk 0:00:23]} 0-1


[Site "https://www.chess.com"]

[Event "Titled Tuesday Blitz October 31 Late 2023"]
[White "Howell, David W L"]
[Black "Belenkaya, Dina"]
[WhiteFideId "410608"]
[BlackFideId "24142654"]
[WhiteElo "2974"]
[BlackElo "2454"]
[Result "1-0"]
[Round "9"]
[TimeControl "180+1"]
[Date "2023.10.31"]
[WhiteClock "0:00:20"]
[BlackClock "0:00:03"]
[Board "53"]

1. e4 {[%clk 0:02:59]}  c6 {[%clk 0:02:59]} 2. Nf3 {[%clk 0:02:48]}  d5 {[%clk 0:03:00]} 3. d3 {[%clk 0:02:48]}  dxe4 {[%clk 0:02:59]} 4. dxe4 {[%clk 0:02:49]}  Qxd1+ {[%clk 0:02:59]} 5. Kxd1 {[%clk 0:02:50]}  Nf6 {[%clk 0:02:57]} 6. Nbd2 {[%clk 0:02:50]}  g6 {[%clk 0:02:56]} 7. Ne1 {[%clk 0:02:48]}  h5 {[%clk 0:02:53]} 8. f3 {[%clk 0:02:46]}  h4 {[%clk 0:02:53]} 9. a4 {[%clk 0:02:38]}  Na6 {[%clk 0:02:51]} 10. Bxa6 {[%clk 0:02:27]}  bxa6 {[%clk 0:02:52]} 11. Nd3 {[%clk 0:02:27]}  Nd7 {[%clk 0:02:37]} 12. Nc4 {[%clk 0:02:13]}  Bg7 {[%clk 0:02:33]} 13. Bf4 {[%clk 0:01:52]}  Rh5 {[%clk 0:02:26]} 14. Ke2 {[%clk 0:01:19]}  Nb6 {[%clk 0:02:25]} 15. Nd2 {[%clk 0:01:12]}  Be6 {[%clk 0:02:22]} 16. Be3 {[%clk 0:01:09]}  Nc4 {[%clk 0:02:20]} 17. Nf4 {[%clk 0:01:07]}  Bxb2 {[%clk 0:01:29]} 18. Rab1 {[%clk 0:00:50]}  Nxd2 {[%clk 0:01:15]} 19. Bxd2 {[%clk 0:00:42]}  Bc4+ {[%clk 0:01:11]} 20. Ke1 {[%clk 0:00:38]}  Rb8 {[%clk 0:00:48]} 21. Nxh5 {[%clk 0:00:36]}  gxh5 {[%clk 0:00:49]} 22. Kf2 {[%clk 0:00:34]}  Bd4+ {[%clk 0:00:46]} 23. Be3 {[%clk 0:00:34]}  Bb6 {[%clk 0:00:45]} 24. a5 {[%clk 0:00:33]}  Bxe3+ {[%clk 0:00:42]} 25. Kxe3 {[%clk 0:00:33]}  Rb5 {[%clk 0:00:41]} 26. Kd4 {[%clk 0:00:29]}  Be6 {[%clk 0:00:31]} 27. Rxb5 {[%clk 0:00:29]}  axb5 {[%clk 0:00:32]} 28. Kc5 {[%clk 0:00:29]}  Kd7 {[%clk 0:00:32]} 29. c3 {[%clk 0:00:26]}  Kc7 {[%clk 0:00:32]} 30. Rd1 {[%clk 0:00:25]}  h3 {[%clk 0:00:32]} 31. g3 {[%clk 0:00:25]}  f6 {[%clk 0:00:30]} 32. Rd4 {[%clk 0:00:22]}  Bb3 {[%clk 0:00:24]} 33. e5 {[%clk 0:00:21]}  f5 {[%clk 0:00:17]} 34. Rh4 {[%clk 0:00:19]}  Bf7 {[%clk 0:00:17]} 35. Rxh3 {[%clk 0:00:19]}  Bg6 {[%clk 0:00:08]} 36. Rh4 {[%clk 0:00:19]}  e6 {[%clk 0:00:07]} 37. Rd4 {[%clk 0:00:19]}  Bf7 {[%clk 0:00:07]} 38. Rd6 {[%clk 0:00:20]}  Bg8 {[%clk 0:00:03]} 39. Rxc6+ {[%clk 0:00:20]} 1-0


[Site "https://www.chess.com"]

[Event "Titled Tuesday Blitz October 31 Late 2023"]
[White "Buchenau, Frank"]
[Black "Hambleton, Aman"]
[WhiteFideId "4604350"]
[BlackFideId "2606577"]
[WhiteElo "2490"]
[BlackElo "2764"]
[Result "1-0"]
[Round "9"]
[TimeControl "180+1"]
[Date "2023.10.31"]
[WhiteClock "0:01:04"]
[BlackClock "0:00:00"]
[Board "54"]

1. e4 {[%clk 0:03:00]}  e5 {[%clk 0:02:55]} 2. Bc4 {[%clk 0:03:00]}  Nf6 {[%clk 0:02:53]} 3. d3 {[%clk 0:03:00]}  Nc6 {[%clk 0:02:50]} 4. Nf3 {[%clk 0:03:00]}  h6 {[%clk 0:02:36]} 5. O-O {[%clk 0:02:59]}  d6 {[%clk 0:02:35]} 6. c3 {[%clk 0:02:57]}  g5 {[%clk 0:02:29]} 7. Re1 {[%clk 0:02:53]}  g4 {[%clk 0:02:09]} 8. Nfd2 {[%clk 0:02:47]}  Bg7 {[%clk 0:01:54]} 9. Nf1 {[%clk 0:02:46]}  a6 {[%clk 0:01:46]} 10. Bb3 {[%clk 0:02:40]}  O-O {[%clk 0:01:00]} 11. Ng3 {[%clk 0:02:39]}  d5 {[%clk 0:00:30]} 12. exd5 {[%clk 0:02:29]}  Nxd5 {[%clk 0:00:31]} 13. Nh5 {[%clk 0:02:26]}  Be6 {[%clk 0:00:31]} 14. Nxg7 {[%clk 0:02:24]}  Kxg7 {[%clk 0:00:32]} 15. Nd2 {[%clk 0:02:09]}  Qd7 {[%clk 0:00:06]} 16. Ne4 {[%clk 0:02:05]}  b6 {[%clk 0:00:06]} 17. Ng3 {[%clk 0:01:49]}  Nf6 {[%clk 0:00:04]} 18. Bxe6 {[%clk 0:01:46]}  Qxe6 {[%clk 0:00:05]} 19. d4 {[%clk 0:01:45]}  Rad8 {[%clk 0:00:05]} 20. Qc2 {[%clk 0:01:44]}  Qd5 {[%clk 0:00:01]} 21. Nf5+ {[%clk 0:01:42]}  Kh8 {[%clk 0:00:02]} 22. Bxh6 {[%clk 0:01:40]}  Rg8 {[%clk 0:00:02]} 23. Rad1 {[%clk 0:01:16]}  exd4 {[%clk 0:00:02]} 24. Nxd4 {[%clk 0:01:16]}  Nxd4 {[%clk 0:00:02]} 25. Rxd4 {[%clk 0:01:15]}  Qh5 {[%clk 0:00:02]} 26. Rxd8 {[%clk 0:01:11]}  Rxd8 {[%clk 0:00:03]} 27. Bf4 {[%clk 0:01:10]}  Nd5 {[%clk 0:00:03]} 28. Rd1 {[%clk 0:01:05]}  Qf5 {[%clk 0:00:00]} 29. Qxf5 {[%clk 0:01:04]} 1-0


[Site "https://www.chess.com"]

[Event "Titled Tuesday Blitz October 31 Late 2023"]
[White "Willy, Stephen"]
[Black "Burke, Carol Ann"]
[WhiteFideId "30981468"]
[BlackFideId "11104643"]
[WhiteElo "2484"]
[BlackElo "2682"]
[Result "0-1"]
[Round "9"]
[TimeControl "180+1"]
[Date "2023.10.31"]
[WhiteClock "0:00:02"]
[BlackClock "0:00:09"]
[Board "57"]

1. e4 {[%clk 0:02:56]}  c5 {[%clk 0:02:59]} 2. c3 {[%clk 0:02:55]}  Nf6 {[%clk 0:02:59]} 3. e5 {[%clk 0:02:55]}  Nd5 {[%clk 0:03:00]} 4. d4 {[%clk 0:02:56]}  cxd4 {[%clk 0:03:01]} 5. Nf3 {[%clk 0:02:57]}  e6 {[%clk 0:03:01]} 6. Bc4 {[%clk 0:02:57]}  b6 {[%clk 0:02:59]} 7. cxd4 {[%clk 0:02:56]}  Bb7 {[%clk 0:02:57]} 8. O-O {[%clk 0:02:54]}  d6 {[%clk 0:02:55]} 9. Qe2 {[%clk 0:02:46]}  Nd7 {[%clk 0:02:53]} 10. Nc3 {[%clk 0:02:35]}  Nxc3 {[%clk 0:02:49]} 11. bxc3 {[%clk 0:02:34]}  Rc8 {[%clk 0:02:48]} 12. d5 {[%clk 0:02:24]}  Rxc4 {[%clk 0:02:33]} 13. dxe6 {[%clk 0:02:11]}  Re4 {[%clk 0:02:21]} 14. exf7+ {[%clk 0:01:57]}  Ke7 {[%clk 0:02:21]} 15. Bg5+ {[%clk 0:01:46]}  Nf6 {[%clk 0:02:21]} 16. exf6+ {[%clk 0:01:04]}  gxf6 {[%clk 0:02:22]} 17. Qd2 {[%clk 0:00:57]}  Kxf7 {[%clk 0:01:48]} 18. Bf4 {[%clk 0:00:45]}  h5 {[%clk 0:01:34]} 19. Nd4 {[%clk 0:00:40]}  h4 {[%clk 0:01:25]} 20. h3 {[%clk 0:00:32]}  Qd7 {[%clk 0:01:12]} 21. Rfe1 {[%clk 0:00:25]}  Rg8 {[%clk 0:01:09]} 22. f3 {[%clk 0:00:23]}  Rxe1+ {[%clk 0:00:39]} 23. Rxe1 {[%clk 0:00:19]}  Qxh3 {[%clk 0:00:38]} 24. Ne6 {[%clk 0:00:17]}  Qf5 {[%clk 0:00:19]} 25. Nd8+ {[%clk 0:00:16]}  Kg6 {[%clk 0:00:18]} 26. Nxb7 {[%clk 0:00:15]}  h3 {[%clk 0:00:18]} 27. g4 {[%clk 0:00:15]}  Kh7 {[%clk 0:00:18]} 28. Re8 {[%clk 0:00:08]}  d5 {[%clk 0:00:10]} 29. Rxf8 {[%clk 0:00:06]}  Qb1+ {[%clk 0:00:10]} 30. Qc1 {[%clk 0:00:03]}  Qxc1+ {[%clk 0:00:09]} 31. Bxc1 {[%clk 0:00:04]}  Rxf8 {[%clk 0:00:10]} 32. Nd6 {[%clk 0:00:03]}  Rd8 {[%clk 0:00:09]} 33. Nf5 {[%clk 0:00:03]}  Rc8 {[%clk 0:00:09]} 34. Bd2 {[%clk 0:00:03]}  Rc4 {[%clk 0:00:09]} 35. Kh2 {[%clk 0:00:04]}  Ra4 {[%clk 0:00:09]} 36. Kg3 {[%clk 0:00:03]}  Rxa2 {[%clk 0:00:09]} 37. Bf4 {[%clk 0:00:02]}  h2 {[%clk 0:00:09]} 0-1


[Site "https://www.chess.com"]

[Event "Titled Tuesday Blitz October 31 Late 2023"]
[White "Jovic, Stanoje"]
[Black "Janaszak, Dawid"]
[WhiteFideId "905020"]
[BlackFideId "1119206"]
[WhiteElo "2438"]
[BlackElo "2663"]
[Result "0-1"]
[Round "9"]
[TimeControl "180+1"]
[Date "2023.10.31"]
[WhiteClock "0:00:00"]
[BlackClock "0:00:56"]
[Board "59"]

1. c4 {[%clk 0:03:00]}  e6 {[%clk 0:02:59]} 2. d4 {[%clk 0:02:59]}  d5 {[%clk 0:03:00]} 3. Nf3 {[%clk 0:02:57]}  c5 {[%clk 0:03:00]} 4. Nc3 {[%clk 0:02:52]}  Nc6 {[%clk 0:03:00]} 5. dxc5 {[%clk 0:02:49]}  d4 {[%clk 0:03:00]} 6. Ne4 {[%clk 0:02:46]}  Nf6 {[%clk 0:02:56]} 7. Nd6+ {[%clk 0:02:29]}  Bxd6 {[%clk 0:02:55]} 8. cxd6 {[%clk 0:02:29]}  Qxd6 {[%clk 0:02:55]} 9. g3 {[%clk 0:02:28]}  e5 {[%clk 0:02:53]} 10. Bg2 {[%clk 0:02:27]}  O-O {[%clk 0:02:52]} 11. O-O {[%clk 0:02:26]}  h6 {[%clk 0:02:49]} 12. b3 {[%clk 0:02:26]}  Bf5 {[%clk 0:02:47]} 13. Bb2 {[%clk 0:02:25]}  Rfe8 {[%clk 0:02:46]} 14. Rc1 {[%clk 0:02:23]}  Rad8 {[%clk 0:02:46]} 15. a3 {[%clk 0:02:19]}  a5 {[%clk 0:02:44]} 16. Qd2 {[%clk 0:02:14]}  Ne4 {[%clk 0:02:42]} 17. Qe1 {[%clk 0:02:09]}  Nc5 {[%clk 0:02:39]} 18. b4 {[%clk 0:02:03]}  Na4 {[%clk 0:02:40]} 19. c5 {[%clk 0:02:00]}  Qe6 {[%clk 0:02:34]} 20. Ba1 {[%clk 0:02:00]}  axb4 {[%clk 0:02:28]} 21. axb4 {[%clk 0:01:58]}  Qb3 {[%clk 0:02:28]} 22. Nd2 {[%clk 0:01:32]}  Qxb4 {[%clk 0:02:23]} 23. Rc4 {[%clk 0:01:20]}  Qb5 {[%clk 0:02:18]} 24. Qc1 {[%clk 0:01:12]}  Na5 {[%clk 0:02:06]} 25. Rxa4 {[%clk 0:00:56]}  Qxa4 {[%clk 0:02:06]} 26. f4 {[%clk 0:00:53]}  e4 {[%clk 0:01:58]} 27. g4 {[%clk 0:00:51]}  e3 {[%clk 0:01:45]} 28. gxf5 {[%clk 0:00:42]}  exd2 {[%clk 0:01:45]} 29. Qxd2 {[%clk 0:00:43]}  Nb3 {[%clk 0:01:41]} 30. Qc2 {[%clk 0:00:35]}  Qa3 {[%clk 0:01:17]} 31. Bb2 {[%clk 0:00:32]}  Qa2 {[%clk 0:01:18]} 32. f6 {[%clk 0:00:28]}  Nxc5 {[%clk 0:01:07]} 33. Ra1 {[%clk 0:00:16]}  Qb3 {[%clk 0:01:00]} 34. Qxc5 {[%clk 0:00:12]}  Qxb2 {[%clk 0:00:59]} 35. Re1 {[%clk 0:00:08]}  Rxe2 {[%clk 0:00:58]} 36. Rxe2 {[%clk 0:00:07]}  Qxe2 {[%clk 0:00:59]} 37. fxg7 {[%clk 0:00:06]}  d3 {[%clk 0:00:58]} 38. Bf1 {[%clk 0:00:00]}  Qg4+ {[%clk 0:00:56]} 0-1


[Site "https://www.chess.com"]

[Event "Titled Tuesday Blitz October 31 Late 2023"]
[White "Schwabeneder, Florian"]
[Black "Polaczek, Richard"]
[WhiteFideId "1626191"]
[BlackFideId "200026"]
[WhiteElo "2633"]
[BlackElo "2437"]
[Result "1-0"]
[Round "9"]
[TimeControl "180+1"]
[Date "2023.10.31"]
[WhiteClock "0:02:01"]
[BlackClock "0:00:27"]
[Board "61"]

1. e4 {[%clk 0:03:00]}  Nf6 {[%clk 0:02:59]} 2. e5 {[%clk 0:03:00]}  Nd5 {[%clk 0:02:59]} 3. d4 {[%clk 0:03:01]}  d6 {[%clk 0:02:59]} 4. exd6 {[%clk 0:02:55]}  cxd6 {[%clk 0:02:58]} 5. Bc4 {[%clk 0:02:56]}  Nb6 {[%clk 0:02:52]} 6. Bb3 {[%clk 0:02:56]}  g6 {[%clk 0:02:52]} 7. Nf3 {[%clk 0:02:45]}  Bg7 {[%clk 0:02:51]} 8. O-O {[%clk 0:02:46]}  O-O {[%clk 0:02:50]} 9. Re1 {[%clk 0:02:46]}  Nc6 {[%clk 0:02:47]} 10. Bg5 {[%clk 0:02:44]}  h6 {[%clk 0:02:37]} 11. Bh4 {[%clk 0:02:43]}  Re8 {[%clk 0:02:37]} 12. c3 {[%clk 0:02:43]}  Bf5 {[%clk 0:02:34]} 13. Nbd2 {[%clk 0:02:42]}  Na5 {[%clk 0:02:32]} 14. Nf1 {[%clk 0:02:39]}  Nxb3 {[%clk 0:02:31]} 15. axb3 {[%clk 0:02:40]}  Nd5 {[%clk 0:02:18]} 16. h3 {[%clk 0:02:37]}  a6 {[%clk 0:02:09]} 17. b4 {[%clk 0:02:36]}  b5 {[%clk 0:02:05]} 18. Ne3 {[%clk 0:02:32]}  Nxe3 {[%clk 0:02:03]} 19. Rxe3 {[%clk 0:02:30]}  Qc7 {[%clk 0:02:02]} 20. Qe2 {[%clk 0:02:28]}  g5 {[%clk 0:01:35]} 21. Bg3 {[%clk 0:02:25]}  Qb7 {[%clk 0:01:23]} 22. Bxd6 {[%clk 0:02:17]}  e6 {[%clk 0:01:13]} 23. Be5 {[%clk 0:02:07]}  f6 {[%clk 0:01:11]} 24. Bh2 {[%clk 0:02:06]}  Qd5 {[%clk 0:01:08]} 25. Nd2 {[%clk 0:02:04]}  Qc6 {[%clk 0:00:59]} 26. Nb3 {[%clk 0:02:02]}  Qd5 {[%clk 0:00:37]} 27. Nc5 {[%clk 0:02:02]}  Qc6 {[%clk 0:00:31]} 28. Re1 {[%clk 0:02:01]}  e5 {[%clk 0:00:27]} 29. dxe5 {[%clk 0:02:01]} 1-0


[Site "https://www.chess.com"]

[Event "Titled Tuesday Blitz October 31 Late 2023"]
[White "Kochiev, Ivan"]
[Black "Ankerst, Mihael"]
[WhiteFideId "2917890"]
[BlackFideId "14602369"]
[WhiteElo "2577"]
[BlackElo "2435"]
[Result "0-1"]
[Round "9"]
[TimeControl "180+1"]
[Date "2023.10.31"]
[WhiteClock "0:00:37"]
[BlackClock "0:02:10"]
[Board "62"]

1. e4 {[%clk 0:03:00]}  c5 {[%clk 0:02:59]} 2. Nf3 {[%clk 0:02:59]}  Qb6 {[%clk 0:02:59]} 3. d4 {[%clk 0:02:56]}  cxd4 {[%clk 0:02:59]} 4. Nxd4 {[%clk 0:02:57]}  Nf6 {[%clk 0:02:59]} 5. f3 {[%clk 0:02:56]}  e5 {[%clk 0:02:57]} 6. Nb3 {[%clk 0:02:54]}  Bb4+ {[%clk 0:02:57]} 7. c3 {[%clk 0:02:47]}  Be7 {[%clk 0:02:57]} 8. Bd3 {[%clk 0:02:45]}  d5 {[%clk 0:02:57]} 9. exd5 {[%clk 0:02:43]}  Nxd5 {[%clk 0:02:56]} 10. Qe2 {[%clk 0:02:43]}  O-O {[%clk 0:02:55]} 11. Qxe5 {[%clk 0:02:36]}  Be6 {[%clk 0:02:52]} 12. N1d2 {[%clk 0:02:28]}  Nc6 {[%clk 0:02:50]} 13. Qe4 {[%clk 0:02:26]}  Nf6 {[%clk 0:02:29]} 14. Qe2 {[%clk 0:01:58]}  Rfe8 {[%clk 0:02:28]} 15. Ne4 {[%clk 0:01:40]}  Nd5 {[%clk 0:02:26]} 16. c4 {[%clk 0:01:28]}  Ndb4 {[%clk 0:02:24]} 17. Be3 {[%clk 0:01:29]}  Nxd3+ {[%clk 0:02:17]} 18. Qxd3 {[%clk 0:01:30]}  Nb4 {[%clk 0:02:17]} 19. Bxb6 {[%clk 0:01:15]}  Nxd3+ {[%clk 0:02:17]} 20. Kf1 {[%clk 0:00:37]}  axb6 {[%clk 0:02:10]} 0-1


[Site "https://www.chess.com"]

[Event "Titled Tuesday Blitz October 31 Late 2023"]
[White "Hoffmann, Asa"]
[Black "Przybylski, Wojciech"]
[WhiteFideId "2001470"]
[BlackFideId "1117599"]
[WhiteElo "2420"]
[BlackElo "2570"]
[Result "0-1"]
[Round "9"]
[TimeControl "180+1"]
[Date "2023.10.31"]
[WhiteClock "0:00:26"]
[BlackClock "0:01:11"]
[Board "63"]

1. d4 {[%clk 0:02:57]}  Nf6 {[%clk 0:02:57]} 2. Bg5 {[%clk 0:02:54]}  e6 {[%clk 0:02:56]} 3. Nd2 {[%clk 0:02:54]}  h6 {[%clk 0:02:55]} 4. Bh4 {[%clk 0:02:53]}  g5 {[%clk 0:02:53]} 5. Bg3 {[%clk 0:02:53]}  Bd6 {[%clk 0:02:52]} 6. e4 {[%clk 0:02:51]}  Bxg3 {[%clk 0:02:51]} 7. hxg3 {[%clk 0:02:51]}  d6 {[%clk 0:02:52]} 8. Ngf3 {[%clk 0:02:50]}  Nc6 {[%clk 0:02:51]} 9. c3 {[%clk 0:02:46]}  e5 {[%clk 0:02:50]} 10. d5 {[%clk 0:02:43]}  Ne7 {[%clk 0:02:50]} 11. Nxg5 {[%clk 0:02:42]}  Bg4 {[%clk 0:02:46]} 12. f3 {[%clk 0:02:34]}  Rg8 {[%clk 0:02:42]} 13. Nh3 {[%clk 0:02:29]}  Bd7 {[%clk 0:02:39]} 14. g4 {[%clk 0:02:29]}  c5 {[%clk 0:02:39]} 15. Nc4 {[%clk 0:02:21]}  Qc7 {[%clk 0:02:37]} 16. a4 {[%clk 0:02:21]}  O-O-O {[%clk 0:02:35]} 17. Nf2 {[%clk 0:02:19]}  Ng6 {[%clk 0:02:34]} 18. Rxh6 {[%clk 0:02:15]}  Be8 {[%clk 0:02:30]} 19. Qd2 {[%clk 0:02:11]}  Qe7 {[%clk 0:02:28]} 20. a5 {[%clk 0:02:08]}  Nf4 {[%clk 0:02:27]} 21. g3 {[%clk 0:02:00]}  Ng6 {[%clk 0:02:27]} 22. Bd3 {[%clk 0:01:59]}  Qf8 {[%clk 0:02:24]} 23. a6 {[%clk 0:01:51]}  b6 {[%clk 0:02:21]} 24. Nxb6+ {[%clk 0:01:50]}  axb6 {[%clk 0:02:20]} 25. a7 {[%clk 0:01:50]}  Kb7 {[%clk 0:02:19]} 26. Qd1 {[%clk 0:01:31]}  Qxh6 {[%clk 0:02:16]} 27. a8=Q+ {[%clk 0:01:22]}  Rxa8 {[%clk 0:02:14]} 28. Rxa8 {[%clk 0:01:21]}  Kxa8 {[%clk 0:02:14]} 29. Qa1+ {[%clk 0:01:21]}  Kb8 {[%clk 0:02:13]} 30. Qa6 {[%clk 0:01:21]}  Qe3+ {[%clk 0:02:10]} 31. Kf1 {[%clk 0:01:17]}  Nd7 {[%clk 0:02:02]} 32. Bb5 {[%clk 0:01:15]}  Kc7 {[%clk 0:01:26]} 33. g5 {[%clk 0:00:56]}  Qxf3 {[%clk 0:01:20]} 34. Qa7+ {[%clk 0:00:45]}  Kd8 {[%clk 0:01:19]} 35. Bxd7 {[%clk 0:00:43]}  Bxd7 {[%clk 0:01:19]} 36. Qb8+ {[%clk 0:00:43]}  Ke7 {[%clk 0:01:15]} 37. Qxg8 {[%clk 0:00:42]}  Qxg3 {[%clk 0:01:13]} 38. Qg7 {[%clk 0:00:26]}  Qxg5 {[%clk 0:01:11]} 0-1


[Site "https://www.chess.com"]

[Event "Titled Tuesday Blitz October 31 Late 2023"]
[White "Dmitrenko, Viktor"]
[Black "Aldokhin, Ivan"]
[WhiteFideId "14110270"]
[BlackFideId "24115720"]
[WhiteElo "2385"]
[BlackElo "2547"]
[Result "0-1"]
[Round "9"]
[TimeControl "180+1"]
[Date "2023.10.31"]
[WhiteClock "0:00:00"]
[BlackClock "0:00:57"]
[Board "66"]

1. e4 {[%clk 0:02:47]}  c5 {[%clk 0:02:59]} 2. Nc3 {[%clk 0:02:45]}  e6 {[%clk 0:03:00]} 3. g3 {[%clk 0:02:44]}  b6 {[%clk 0:02:57]} 4. Bg2 {[%clk 0:02:43]}  Bb7 {[%clk 0:02:58]} 5. Nge2 {[%clk 0:02:40]}  Nf6 {[%clk 0:02:59]} 6. O-O {[%clk 0:02:32]}  d6 {[%clk 0:02:59]} 7. Re1 {[%clk 0:02:24]}  Nbd7 {[%clk 0:02:57]} 8. d4 {[%clk 0:02:19]}  cxd4 {[%clk 0:02:58]} 9. Nxd4 {[%clk 0:02:17]}  Qb8 {[%clk 0:02:37]} 10. a4 {[%clk 0:01:53]}  a6 {[%clk 0:02:35]} 11. g4 {[%clk 0:01:32]}  h6 {[%clk 0:02:33]} 12. h3 {[%clk 0:01:24]}  Be7 {[%clk 0:02:32]} 13. g5 {[%clk 0:01:17]}  hxg5 {[%clk 0:02:28]} 14. Bxg5 {[%clk 0:01:17]}  O-O {[%clk 0:02:24]} 15. Re3 {[%clk 0:01:07]}  Ne5 {[%clk 0:02:16]} 16. Rg3 {[%clk 0:01:04]}  Qc7 {[%clk 0:02:13]} 17. Qd2 {[%clk 0:00:47]}  Nc4 {[%clk 0:01:56]} 18. Qe2 {[%clk 0:00:30]}  g6 {[%clk 0:01:43]} 19. Bh6 {[%clk 0:00:19]}  Rfe8 {[%clk 0:01:39]} 20. Nxe6 {[%clk 0:00:16]}  fxe6 {[%clk 0:01:37]} 21. Rxg6+ {[%clk 0:00:16]}  Kh8 {[%clk 0:01:29]} 22. Bg5 {[%clk 0:00:12]}  Nh7 {[%clk 0:01:24]} 23. Bxe7 {[%clk 0:00:09]}  Rxe7 {[%clk 0:01:20]} 24. Qh5 {[%clk 0:00:08]}  Ne5 {[%clk 0:01:07]} 25. Rh6 {[%clk 0:00:07]}  Rg7 {[%clk 0:01:08]} 26. f4 {[%clk 0:00:04]}  Nf7 {[%clk 0:00:59]} 27. Rxe6 {[%clk 0:00:00]}  Rag8 {[%clk 0:00:57]} 0-1


[Site "https://www.chess.com"]